[Event "Early-Titled-Tuesday-Blitz-March-05-2024"]
[Site "Chess.com"]
[Date "2024.03.05"]
[Round "6"]
[White "Nemegejas"]
[Black "Shahdad2007"]
[Result "1-0"]
[WhiteElo "2799"]
[BlackElo "2569"]
[TimeControl "180+1"]
[EndTime "9:08:02 PST"]
[Termination "Nemegejas won by checkmate"]

1. d4 {[%clk 0:03:00.6]} 1... Nf6 {[%clk 0:02:59.2]} 2. c4 {[%clk 0:03:00.9]}
2... g6 {[%clk 0:02:58.4]} 3. Nc3 {[%clk 0:03:00.9]} 3... d5 {[%clk 0:02:58.6]}
4. cxd5 {[%clk 0:02:59.3]} 4... Nxd5 {[%clk 0:02:59.5]} 5. g3 {[%clk 0:02:58.1]}
5... Bg7 {[%clk 0:02:57.1]} 6. Bg2 {[%clk 0:02:58.5]} 6... Nxc3 {[%clk
0:02:53.1]} 7. bxc3 {[%clk 0:02:58.7]} 7... O-O {[%clk 0:02:51.6]} 8. Nf3 {[%clk
0:02:53.8]} 8... c5 {[%clk 0:02:51]} 9. O-O {[%clk 0:02:54]} 9... Nc6 {[%clk
0:02:49.2]} 10. Be3 {[%clk 0:02:54.1]} 10... Be6 {[%clk 0:02:40.2]} 11. Rb1
{[%clk 0:02:41.1]} 11... Bxa2 {[%clk 0:02:39.9]} 12. Rxb7 {[%clk 0:02:41]} 12...
Bd5 {[%clk 0:02:40.4]} 13. Rb5 {[%clk 0:02:40.4]} 13... cxd4 {[%clk 0:02:37.4]}
14. Rxd5 {[%clk 0:02:40.5]} 14... Qxd5 {[%clk 0:02:34.5]} 15. Nxd4 {[%clk
0:02:40.8]} 15... Qd6 {[%clk 0:02:22.7]} 16. Nxc6 {[%clk 0:02:37.6]} 16... Kh8
{[%clk 0:01:52.6]} 17. Nxa7 {[%clk 0:02:25.1]} 17... Rad8 {[%clk 0:01:47.7]} 18.
Qxd6 {[%clk 0:02:22.6]} 18... exd6 {[%clk 0:01:38.9]} 19. c4 {[%clk 0:02:19.7]}
19... Rfe8 {[%clk 0:01:38.3]} 20. Bd5 {[%clk 0:02:15.4]} 20... f5 {[%clk
0:01:33.5]} 21. Nb5 {[%clk 0:02:07.2]} 21... Be5 {[%clk 0:01:19.7]} 22. Rd1
{[%clk 0:01:56.6]} 22... Kg7 {[%clk 0:01:13.2]} 23. Bb6 {[%clk 0:01:53.8]} 23...
Rc8 {[%clk 0:01:10.2]} 24. f4 {[%clk 0:01:47.3]} 24... Rb8 {[%clk 0:01:03.3]}
25. Bc7 {[%clk 0:01:43.9]} 25... Bf6 {[%clk 0:00:52.2]} 26. Bxb8 {[%clk
0:01:41.4]} 26... Rxb8 {[%clk 0:00:53.1]} 27. Nxd6 {[%clk 0:01:41.6]} 27... Rb2
{[%clk 0:00:52.1]} 28. Ne8+ {[%clk 0:01:41]} 28... Kf8 {[%clk 0:00:51]} 29. Nxf6
{[%clk 0:01:41.9]} 29... Rxe2 {[%clk 0:00:50.7]} 30. Nd7+ {[%clk 0:01:42.2]}
30... Ke7 {[%clk 0:00:50.1]} 31. Ne5 {[%clk 0:01:43.1]} 31... Rc2 {[%clk
0:00:49.9]} 32. Rb1 {[%clk 0:01:43]} 32... Kd6 {[%clk 0:00:49.7]} 33. Rb5 {[%clk
0:01:43.1]} 33... g5 {[%clk 0:00:47.4]} 34. Bf3 {[%clk 0:01:42]} 34... g4 {[%clk
0:00:44.4]} 35. Rd5+ {[%clk 0:01:42]} 35... Ke6 {[%clk 0:00:43.9]} 36. Bd1
{[%clk 0:01:41.9]} 36... Rc1 {[%clk 0:00:42.4]} 37. Rd4 {[%clk 0:01:41.3]} 37...
h5 {[%clk 0:00:42]} 38. Kf2 {[%clk 0:01:41.6]} 38... Rc3 {[%clk 0:00:39.6]} 39.
Ke2 {[%clk 0:01:38.8]} 39... h4 {[%clk 0:00:38.3]} 40. gxh4 {[%clk 0:01:34.8]}
40... Rh3 {[%clk 0:00:39.2]} 41. c5 {[%clk 0:01:31.6]} 41... Rxh2+ {[%clk
0:00:38]} 42. Kf1 {[%clk 0:01:31.2]} 42... Rh1+ {[%clk 0:00:36.7]} 43. Kg2
{[%clk 0:01:30.9]} 43... Rxh4 {[%clk 0:00:36]} 44. Bb3+ {[%clk 0:01:29.8]} 44...
Kf6 {[%clk 0:00:31.8]} 45. Rd6+ {[%clk 0:01:28.1]} 45... Kg7 {[%clk 0:00:32.1]}
46. c6 {[%clk 0:01:26.8]} 46... Rh8 {[%clk 0:00:30.4]} 47. Rd7+ {[%clk
0:01:24.7]} 47... Kf8 {[%clk 0:00:28.1]} 48. Ng6+ {[%clk 0:01:23.7]} 48... Ke8
{[%clk 0:00:27.3]} 49. Bf7# {[%clk 0:01:24.6]} 1-0

[Event "Early-Titled-Tuesday-Blitz-March-05-2024"]
[Site "Chess.com"]
[Date "2024.03.05"]
[Round "6"]
[White "Balla_Tamas"]
[Black "sergeikim"]
[Result "1-0"]
[WhiteElo "2443"]
[BlackElo "2580"]
[TimeControl "180+1"]
[EndTime "9:08:02 PST"]
[Termination "Balla_Tamas won by resignation"]

1. e4 {[%clk 0:02:59.7]} 1... e5 {[%clk 0:02:59.6]} 2. Nf3 {[%clk 0:02:55.8]}
2... Nc6 {[%clk 0:02:59.7]} 3. d4 {[%clk 0:02:55.8]} 3... exd4 {[%clk
0:02:59.2]} 4. Nxd4 {[%clk 0:02:56.7]} 4... Bc5 {[%clk 0:02:59]} 5. Nb3 {[%clk
0:02:56.6]} 5... Bb6 {[%clk 0:02:58.6]} 6. Nc3 {[%clk 0:02:56.3]} 6... d6 {[%clk
0:02:58.9]} 7. Qe2 {[%clk 0:02:53.3]} 7... Nf6 {[%clk 0:02:58.7]} 8. Be3 {[%clk
0:02:52.1]} 8... Be6 {[%clk 0:02:58.6]} 9. O-O-O {[%clk 0:02:47.3]} 9... Qe7
{[%clk 0:02:58.4]} 10. f3 {[%clk 0:02:47]} 10... h6 {[%clk 0:02:55.3]} 11. g3
{[%clk 0:02:44.3]} 11... O-O-O {[%clk 0:02:53.5]} 12. Bg2 {[%clk 0:02:44.5]}
12... Rhe8 {[%clk 0:02:52.3]} 13. Kb1 {[%clk 0:02:41.9]} 13... Kb8 {[%clk
0:02:51.2]} 14. Rhe1 {[%clk 0:02:41.3]} 14... Bc8 {[%clk 0:02:49.1]} 15. Bxb6
{[%clk 0:02:41]} 15... axb6 {[%clk 0:02:48.1]} 16. f4 {[%clk 0:02:40.9]} 16...
Bg4 {[%clk 0:02:42.8]} 17. Bf3 {[%clk 0:02:39.9]} 17... Bxf3 {[%clk 0:02:43.1]}
18. Qxf3 {[%clk 0:02:40.8]} 18... Qe6 {[%clk 0:02:27.5]} 19. Nd4 {[%clk
0:02:35]} 19... Nxd4 {[%clk 0:02:26.4]} 20. Rxd4 {[%clk 0:02:35.9]} 20... Qg4
{[%clk 0:02:17.3]} 21. Qd3 {[%clk 0:02:30.4]} 21... Nd7 {[%clk 0:02:13.2]} 22.
Qc4 {[%clk 0:02:14.9]} 22... Nc5 {[%clk 0:02:09.2]} 23. Qxf7 {[%clk 0:01:48.8]}
23... g5 {[%clk 0:01:32.2]} 24. f5 {[%clk 0:01:32.5]} 24... Qf3 {[%clk
0:00:59.1]} 25. a3 {[%clk 0:01:16.5]} 25... Qf2 {[%clk 0:00:55.5]} 26. Red1
{[%clk 0:01:07.4]} 26... Qxh2 {[%clk 0:00:50.7]} 27. Nd5 {[%clk 0:00:55.6]}
27... Nd7 {[%clk 0:00:50.1]} 28. Nxc7 {[%clk 0:00:43.1]} 28... Kxc7 {[%clk
0:00:47.2]} 29. Rxd6 {[%clk 0:00:43.6]} 29... Kb8 {[%clk 0:00:28.4]} 30. Rxd7
{[%clk 0:00:41.4]} 30... Rxd7 {[%clk 0:00:26.9]} 31. Qxe8+ {[%clk 0:00:41.6]}
1-0

[Event "Early-Titled-Tuesday-Blitz-March-05-2024"]
[Site "Chess.com"]
[Date "2024.03.05"]
[Round "6"]
[White "scarabee43"]
[Black "Kostya0705"]
[Result "1-0"]
[WhiteElo "2882"]
[BlackElo "2578"]
[TimeControl "180+1"]
[EndTime "9:08:04 PST"]
[Termination "scarabee43 won by resignation"]

1. Nf3 {[%clk 0:03:00.9]} 1... Nf6 {[%clk 0:01:52.9]} 2. c4 {[%clk 0:02:59.1]}
2... e6 {[%clk 0:01:52.6]} 3. Nc3 {[%clk 0:02:59.2]} 3... d5 {[%clk 0:01:53]} 4.
e3 {[%clk 0:02:57]} 4... Ke7 {[%clk 0:01:52.3]} 5. b3 {[%clk 0:02:55.4]} 5...
Ke8 {[%clk 0:01:51.7]} 6. Bb2 {[%clk 0:02:54.5]} 6... Be7 {[%clk 0:01:49.2]} 7.
d4 {[%clk 0:02:52.3]} 7... Kf8 {[%clk 0:01:45.5]} 8. Bd3 {[%clk 0:02:49.7]} 8...
g6 {[%clk 0:01:26.8]} 9. O-O {[%clk 0:02:43.9]} 9... Kg7 {[%clk 0:01:25.9]} 10.
e4 {[%clk 0:02:44.2]} 10... dxe4 {[%clk 0:01:25.6]} 11. Nxe4 {[%clk 0:02:43.6]}
11... Nxe4 {[%clk 0:01:26.1]} 12. Bxe4 {[%clk 0:02:43.7]} 12... Bf6 {[%clk
0:01:27]} 13. Qe2 {[%clk 0:02:40.4]} 13... c6 {[%clk 0:01:26.5]} 14. Rad1 {[%clk
0:02:37.1]} 14... Nd7 {[%clk 0:01:26.1]} 15. h4 {[%clk 0:02:23.6]} 15... h5
{[%clk 0:01:23.8]} 16. g3 {[%clk 0:02:21.8]} 16... Qe7 {[%clk 0:01:19.5]} 17.
Rfe1 {[%clk 0:02:14.2]} 17... a5 {[%clk 0:01:16.6]} 18. Qc2 {[%clk 0:02:00.2]}
18... a4 {[%clk 0:01:03]} 19. d5 {[%clk 0:01:59.1]} 19... cxd5 {[%clk
0:01:01.2]} 20. cxd5 {[%clk 0:01:59.7]} 20... axb3 {[%clk 0:01:00.7]} 21. axb3
{[%clk 0:01:56.9]} 21... Bxb2 {[%clk 0:00:53.4]} 22. Qxb2+ {[%clk 0:01:56.8]}
22... Qf6 {[%clk 0:00:53.7]} 23. Qxf6+ {[%clk 0:01:48.9]} 23... Nxf6 {[%clk
0:00:54.6]} 24. d6 {[%clk 0:01:48.8]} 24... Bd7 {[%clk 0:00:51.7]} 25. Ne5
{[%clk 0:01:47.9]} 25... Ra3 {[%clk 0:00:46.5]} 26. Rd3 {[%clk 0:01:34.9]} 26...
Rd8 {[%clk 0:00:31.5]} 27. Nc4 {[%clk 0:01:18.3]} 27... Ra7 {[%clk 0:00:22]} 28.
Bg2 {[%clk 0:01:15.1]} 28... Bb5 {[%clk 0:00:19.9]} 29. Rd2 {[%clk 0:01:12.9]}
29... Rd7 {[%clk 0:00:10]} 30. Ne5 {[%clk 0:01:09.8]} 30... Rd8 {[%clk
0:00:10.3]} 31. Rc1 {[%clk 0:01:08.3]} 31... Ra6 {[%clk 0:00:09.6]} 32. Rc7
{[%clk 0:01:08.1]} 32... Raxd6 {[%clk 0:00:08.4]} 33. Rxd6 {[%clk 0:01:07.6]}
33... Rxd6 {[%clk 0:00:09.3]} 34. Rxf7+ {[%clk 0:01:08]} 34... Kh6 {[%clk
0:00:06]} 35. Rxf6 {[%clk 0:01:07.9]} 1-0

[Event "Early-Titled-Tuesday-Blitz-March-05-2024"]
[Site "Chess.com"]
[Date "2024.03.05"]
[Round "6"]
[White "Cheer_Down"]
[Black "Viktor_Poddubnyi"]
[Result "1-0"]
[WhiteElo "2411"]
[BlackElo "2270"]
[TimeControl "180+1"]
[EndTime "9:08:05 PST"]
[Termination "Cheer_Down won by resignation"]

1. e4 {[%clk 0:03:00.9]} 1... g6 {[%clk 0:03:00.3]} 2. d4 {[%clk 0:03:00.6]}
2... Bg7 {[%clk 0:03:00.9]} 3. Nc3 {[%clk 0:03:00.8]} 3... d6 {[%clk 0:03:01.4]}
4. Nf3 {[%clk 0:02:59.9]} 4... Nf6 {[%clk 0:03:01]} 5. Be2 {[%clk 0:02:59.8]}
5... c6 {[%clk 0:03:01.4]} 6. O-O {[%clk 0:02:57.8]} 6... O-O {[%clk 0:03:01.2]}
7. h3 {[%clk 0:02:55.6]} 7... Nbd7 {[%clk 0:03:01.2]} 8. e5 {[%clk 0:02:52.2]}
8... Nd5 {[%clk 0:02:56.6]} 9. Nxd5 {[%clk 0:02:50]} 9... cxd5 {[%clk
0:02:57.5]} 10. Bf4 {[%clk 0:02:42.2]} 10... dxe5 {[%clk 0:02:52.9]} 11. dxe5
{[%clk 0:02:42]} 11... e6 {[%clk 0:02:52.5]} 12. c3 {[%clk 0:02:40.3]} 12... Nb6
{[%clk 0:02:50.8]} 13. Qd2 {[%clk 0:02:32.3]} 13... Qc7 {[%clk 0:02:49.8]} 14.
b3 {[%clk 0:02:26.8]} 14... Bd7 {[%clk 0:02:48.5]} 15. Rfe1 {[%clk 0:02:24.8]}
15... Rac8 {[%clk 0:02:41.5]} 16. Rac1 {[%clk 0:02:24.6]} 16... Bc6 {[%clk
0:02:38]} 17. Bf1 {[%clk 0:02:18.5]} 17... Nd7 {[%clk 0:02:35.8]} 18. h4 {[%clk
0:02:16.6]} 18... Qa5 {[%clk 0:02:18.6]} 19. h5 {[%clk 0:02:06.4]} 19... Bb5
{[%clk 0:02:09]} 20. hxg6 {[%clk 0:01:30]} 20... fxg6 {[%clk 0:02:04.8]} 21.
Bxb5 {[%clk 0:01:24.2]} 21... Qxb5 {[%clk 0:02:04.4]} 22. Nd4 {[%clk 0:01:24.3]}
22... Qa6 {[%clk 0:01:57.3]} 23. Bg3 {[%clk 0:01:19.1]} 23... Nc5 {[%clk
0:01:45.1]} 24. f3 {[%clk 0:01:17.8]} 24... Nd7 {[%clk 0:01:29.2]} 25. Rc2
{[%clk 0:00:59.4]} 25... Rc7 {[%clk 0:01:19.4]} 26. Qg5 {[%clk 0:00:56.7]} 26...
Qd3 {[%clk 0:01:08.2]} 27. Qg4 {[%clk 0:00:44.6]} 27... Re8 {[%clk 0:00:57.2]}
28. Nxe6 {[%clk 0:00:34.7]} 28... Rxc3 {[%clk 0:00:56.1]} 29. Rxc3 {[%clk
0:00:32.9]} 29... Qxc3 {[%clk 0:00:57]} 30. Nxg7 {[%clk 0:00:33.4]} 30... Qd4+
{[%clk 0:00:41.3]} 31. Qxd4 {[%clk 0:00:30.8]} 1-0

[Event "Early-Titled-Tuesday-Blitz-March-05-2024"]
[Site "Chess.com"]
[Date "2024.03.05"]
[Round "6"]
[White "amelia91"]
[Black "martinmena"]
[Result "1-0"]
[WhiteElo "2040"]
[BlackElo "2295"]
[TimeControl "180+1"]
[EndTime "9:08:05 PST"]
[Termination "amelia91 won by checkmate"]

1. d4 {[%clk 0:03:00.9]} 1... d5 {[%clk 0:02:58.6]} 2. Nf3 {[%clk 0:03:00.1]}
2... Nf6 {[%clk 0:02:58.2]} 3. e3 {[%clk 0:03:00.3]} 3... e6 {[%clk 0:02:58]} 4.
Bd3 {[%clk 0:03:00.4]} 4... Bd6 {[%clk 0:02:58.6]} 5. Nbd2 {[%clk 0:03:00.6]}
5... O-O {[%clk 0:02:58.9]} 6. O-O {[%clk 0:03:00.8]} 6... b6 {[%clk 0:02:59.6]}
7. Ne5 {[%clk 0:02:58.7]} 7... Bb7 {[%clk 0:02:59.9]} 8. f4 {[%clk 0:02:58.8]}
8... c5 {[%clk 0:02:58.3]} 9. c3 {[%clk 0:02:58.1]} 9... Nc6 {[%clk 0:02:58.7]}
10. Qf3 {[%clk 0:02:57.6]} 10... Ne7 {[%clk 0:02:54.6]} 11. g4 {[%clk 0:02:50]}
11... Nd7 {[%clk 0:02:29]} 12. Qh3 {[%clk 0:02:44.1]} 12... f5 {[%clk
0:02:20.3]} 13. Ndf3 {[%clk 0:02:30.7]} 13... Bxe5 {[%clk 0:01:44.1]} 14. fxe5
{[%clk 0:02:26.4]} 14... Qe8 {[%clk 0:01:14.9]} 15. gxf5 {[%clk 0:02:03.5]}
15... Nxf5 {[%clk 0:01:10.9]} 16. Kh1 {[%clk 0:02:03]} 16... Qg6 {[%clk
0:01:00.8]} 17. Bd2 {[%clk 0:01:57.2]} 17... Rae8 {[%clk 0:00:50]} 18. Rg1
{[%clk 0:01:53]} 18... Ng3+ {[%clk 0:00:49.3]} 19. Qxg3 {[%clk 0:01:49.9]} 19...
Qxg3 {[%clk 0:00:39.1]} 20. Rxg3 {[%clk 0:01:48.9]} 20... cxd4 {[%clk
0:00:20.4]} 21. exd4 {[%clk 0:01:46.4]} 21... Rxf3 {[%clk 0:00:17.1]} 22. Rxf3
{[%clk 0:01:46]} 22... Nxe5 {[%clk 0:00:17.5]} 23. Rg3 {[%clk 0:01:38.7]} 23...
Nxd3 {[%clk 0:00:08.2]} 24. Rxd3 {[%clk 0:01:39.6]} 24... Rf8 {[%clk 0:00:08.7]}
25. Kg2 {[%clk 0:01:36.2]} 25... Rf5 {[%clk 0:00:08.1]} 26. Rf3 {[%clk
0:01:29.9]} 26... Rh5 {[%clk 0:00:05.3]} 27. Raf1 {[%clk 0:01:28.1]} 27... h6
{[%clk 0:00:04.8]} 28. Rf8+ {[%clk 0:01:21]} 28... Kh7 {[%clk 0:00:04.6]} 29.
R1f7 {[%clk 0:01:16.7]} 29... Ba6 {[%clk 0:00:03.4]} 30. Rxa7 {[%clk 0:01:15.6]}
30... Bd3 {[%clk 0:00:03.5]} 31. Rff7 {[%clk 0:01:11.7]} 31... Kg6 {[%clk
0:00:01.2]} 32. Rxg7+ {[%clk 0:01:10.8]} 32... Kf5 {[%clk 0:00:02.1]} 33. Raf7+
{[%clk 0:01:07.1]} 33... Ke4 {[%clk 0:00:02.5]} 34. Rf4# {[%clk 0:01:06.7]} 1-0

[Event "Early-Titled-Tuesday-Blitz-March-05-2024"]
[Site "Chess.com"]
[Date "2024.03.05"]
[Round "6"]
[White "Anton_Demchenko"]
[Black "AlexTruskavetsky"]
[Result "1-0"]
[WhiteElo "2910"]
[BlackElo "2703"]
[TimeControl "180+1"]
[EndTime "9:08:06 PST"]
[Termination "Anton_Demchenko won by resignation"]

1. e4 {[%clk 0:03:00.9]} 1... c5 {[%clk 0:03:00]} 2. Nf3 {[%clk 0:03:00.9]} 2...
Nc6 {[%clk 0:03:00.3]} 3. Bb5 {[%clk 0:03:00.3]} 3... g6 {[%clk 0:03:00.4]} 4.
O-O {[%clk 0:02:59.2]} 4... Nf6 {[%clk 0:03:00.7]} 5. Re1 {[%clk 0:02:54.2]}
5... Bg7 {[%clk 0:03:00.5]} 6. Nc3 {[%clk 0:02:49.8]} 6... O-O {[%clk
0:02:59.9]} 7. e5 {[%clk 0:02:50.1]} 7... Ng4 {[%clk 0:02:59.9]} 8. Bxc6 {[%clk
0:02:50.2]} 8... dxc6 {[%clk 0:03:00.1]} 9. d3 {[%clk 0:02:50.5]} 9... Nh6
{[%clk 0:02:56.5]} 10. h3 {[%clk 0:02:50.6]} 10... Nf5 {[%clk 0:02:56.8]} 11.
Bf4 {[%clk 0:02:50.3]} 11... b6 {[%clk 0:02:56.4]} 12. a4 {[%clk 0:02:50.1]}
12... a5 {[%clk 0:02:54.1]} 13. Ne4 {[%clk 0:02:47.8]} 13... Ba6 {[%clk
0:02:52.7]} 14. b3 {[%clk 0:02:45.8]} 14... Nd4 {[%clk 0:02:52.4]} 15. Ned2
{[%clk 0:02:45.2]} 15... Qd5 {[%clk 0:02:46.7]} 16. Bg3 {[%clk 0:02:18.1]} 16...
Rfd8 {[%clk 0:02:41]} 17. Nxd4 {[%clk 0:02:01.7]} 17... Qxd4 {[%clk 0:02:38]}
18. Qe2 {[%clk 0:01:57.7]} 18... Bc8 {[%clk 0:02:15.5]} 19. Nc4 {[%clk
0:01:36.9]} 19... Ra6 {[%clk 0:02:15.6]} 20. Qf3 {[%clk 0:01:15.1]} 20... Qd5
{[%clk 0:02:08.3]} 21. Qf4 {[%clk 0:01:11.6]} 21... Be6 {[%clk 0:02:06]} 22. Bh4
{[%clk 0:00:53.1]} 22... Rd7 {[%clk 0:02:00.9]} 23. Re4 {[%clk 0:00:53.7]} 23...
h6 {[%clk 0:01:55.1]} 24. Ne3 {[%clk 0:00:48.9]} 24... g5 {[%clk 0:01:52.2]} 25.
Bxg5 {[%clk 0:00:39.8]} 25... hxg5 {[%clk 0:01:48]} 26. Qxg5 {[%clk 0:00:40.4]}
26... f6 {[%clk 0:01:47.9]} 27. Qg3 {[%clk 0:00:34]} 27... Qxe4 {[%clk
0:01:37.8]} 28. dxe4 {[%clk 0:00:34.9]} 28... fxe5 {[%clk 0:01:38.3]} 29. Nf5
{[%clk 0:00:31.6]} 29... Bxf5 {[%clk 0:01:37.2]} 30. exf5 {[%clk 0:00:32.5]}
30... Rd6 {[%clk 0:01:32]} 31. Re1 {[%clk 0:00:30.7]} 31... Kf8 {[%clk
0:01:31.8]} 32. Re4 {[%clk 0:00:29.6]} 32... Bh6 {[%clk 0:01:28.7]} 33. Qxe5
{[%clk 0:00:26.5]} 33... Ra7 {[%clk 0:01:29.2]} 34. Qh8+ {[%clk 0:00:23.3]}
34... Kf7 {[%clk 0:01:29.5]} 35. Qh7+ {[%clk 0:00:20.7]} 35... Ke8 {[%clk
0:01:25.6]} 36. Re6 {[%clk 0:00:19.3]} 36... Bf4 {[%clk 0:01:23.3]} 37. g3
{[%clk 0:00:19.2]} 37... Bg5 {[%clk 0:01:18]} 38. Qg8+ {[%clk 0:00:18.6]} 38...
Kd7 {[%clk 0:01:18]} 39. Qxg5 {[%clk 0:00:19.1]} 39... Rxe6 {[%clk 0:01:16.2]}
40. fxe6+ {[%clk 0:00:20]} 40... Kxe6 {[%clk 0:01:17.1]} 41. h4 {[%clk
0:00:20.2]} 41... Rd7 {[%clk 0:01:17.2]} 42. h5 {[%clk 0:00:20.6]} 42... c4
{[%clk 0:01:17.9]} 43. Qg4+ {[%clk 0:00:20.1]} 1-0

[Event "Early-Titled-Tuesday-Blitz-March-05-2024"]
[Site "Chess.com"]
[Date "2024.03.05"]
[Round "6"]
[White "HanSchut"]
[Black "secrethawk1"]
[Result "0-1"]
[WhiteElo "2310"]
[BlackElo "2491"]
[TimeControl "180+1"]
[EndTime "9:08:13 PST"]
[Termination "secrethawk1 won on time"]

1. e4 {[%clk 0:03:00.9]} 1... c5 {[%clk 0:02:58.2]} 2. Nf3 {[%clk 0:03:01.2]}
2... e6 {[%clk 0:02:58]} 3. c4 {[%clk 0:03:00.4]} 3... Nc6 {[%clk 0:02:57.1]} 4.
Nc3 {[%clk 0:03:01]} 4... Nf6 {[%clk 0:02:56.6]} 5. Be2 {[%clk 0:03:01]} 5...
Be7 {[%clk 0:02:54.4]} 6. O-O {[%clk 0:02:59.9]} 6... e5 {[%clk 0:02:48.7]} 7.
d3 {[%clk 0:02:57.9]} 7... O-O {[%clk 0:02:47.7]} 8. Nd5 {[%clk 0:02:57.6]} 8...
d6 {[%clk 0:02:46.6]} 9. Rb1 {[%clk 0:02:56.5]} 9... a5 {[%clk 0:02:45.1]} 10.
b3 {[%clk 0:02:55.3]} 10... Be6 {[%clk 0:02:43.6]} 11. a3 {[%clk 0:02:54.7]}
11... Nd4 {[%clk 0:02:43.1]} 12. b4 {[%clk 0:02:50.5]} 12... axb4 {[%clk
0:02:41.3]} 13. axb4 {[%clk 0:02:50.3]} 13... Ra2 {[%clk 0:02:37]} 14. Rb2
{[%clk 0:02:21.3]} 14... Rxb2 {[%clk 0:02:28.3]} 15. Bxb2 {[%clk 0:02:20.7]}
15... Bxd5 {[%clk 0:02:28]} 16. Nxd4 {[%clk 0:02:03.3]} 16... Bxe4 {[%clk
0:02:23.6]} 17. Nb5 {[%clk 0:01:53]} 17... Bc6 {[%clk 0:02:17.7]} 18. bxc5
{[%clk 0:01:50.5]} 18... dxc5 {[%clk 0:02:12.6]} 19. Bxe5 {[%clk 0:01:50.1]}
19... Nd7 {[%clk 0:02:08.3]} 20. Bc7 {[%clk 0:01:33]} 20... Qc8 {[%clk
0:02:04.8]} 21. Bf4 {[%clk 0:01:33.1]} 21... Bf6 {[%clk 0:02:01.8]} 22. Nd6
{[%clk 0:01:16.3]} 22... Qa8 {[%clk 0:01:52.8]} 23. Bf3 {[%clk 0:01:16.2]} 23...
b6 {[%clk 0:01:45]} 24. Ne4 {[%clk 0:01:02.9]} 24... Bd4 {[%clk 0:01:41.5]} 25.
Re1 {[%clk 0:00:57.4]} 25... Re8 {[%clk 0:01:27.3]} 26. Ng5 {[%clk 0:00:50.6]}
26... Rxe1+ {[%clk 0:01:21.1]} 27. Qxe1 {[%clk 0:00:50]} 27... Bxf3 {[%clk
0:01:21.6]} 28. Nxf3 {[%clk 0:00:48.7]} 28... Bf6 {[%clk 0:01:20]} 29. h3 {[%clk
0:00:39.9]} 29... Nf8 {[%clk 0:01:12.4]} 30. Be5 {[%clk 0:00:26.4]} 30... Nd7
{[%clk 0:01:03.8]} 31. Bxf6 {[%clk 0:00:02.2]} 31... Nxf6 {[%clk 0:01:04.7]} 32.
Qe7 {[%clk 0:00:01.4]} 32... Qe8 {[%clk 0:00:55.7]} 0-1

[Event "Early-Titled-Tuesday-Blitz-March-05-2024"]
[Site "Chess.com"]
[Date "2024.03.05"]
[Round "6"]
[White "Christian_Jordan"]
[Black "Arteler"]
[Result "1/2-1/2"]
[WhiteElo "2099"]
[BlackElo "2418"]
[TimeControl "180+1"]
[EndTime "9:08:15 PST"]
[Termination "Game drawn by agreement"]

1. e4 {[%clk 0:03:00.9]} 1... e6 {[%clk 0:02:55.9]} 2. d4 {[%clk 0:02:59.3]}
2... d5 {[%clk 0:02:56.8]} 3. Nc3 {[%clk 0:02:58.7]} 3... Nf6 {[%clk 0:02:56.3]}
4. Bg5 {[%clk 0:02:56.6]} 4... Be7 {[%clk 0:02:55.9]} 5. e5 {[%clk 0:02:53.7]}
5... Nfd7 {[%clk 0:02:55.6]} 6. Bxe7 {[%clk 0:02:53.1]} 6... Qxe7 {[%clk
0:02:56]} 7. Nb5 {[%clk 0:02:52.2]} 7... Nb6 {[%clk 0:02:55.7]} 8. c3 {[%clk
0:02:48.7]} 8... a6 {[%clk 0:02:55.2]} 9. Na3 {[%clk 0:02:48.1]} 9... c5 {[%clk
0:02:55]} 10. f4 {[%clk 0:02:46.2]} 10... Nc6 {[%clk 0:02:50.6]} 11. Nf3 {[%clk
0:02:45.5]} 11... O-O {[%clk 0:02:41.5]} 12. Nc2 {[%clk 0:02:42.3]} 12... cxd4
{[%clk 0:02:38.7]} 13. cxd4 {[%clk 0:02:40.2]} 13... Nb4 {[%clk 0:02:29.6]} 14.
Nxb4 {[%clk 0:02:35.9]} 14... Qxb4+ {[%clk 0:02:28.8]} 15. Qd2 {[%clk
0:02:35.8]} 15... Qxd2+ {[%clk 0:02:23.2]} 16. Kxd2 {[%clk 0:02:34.8]} 16... Bd7
{[%clk 0:02:22.9]} 17. b3 {[%clk 0:02:26.1]} 17... Rac8 {[%clk 0:02:17.3]} 18.
Bd3 {[%clk 0:02:23.4]} 18... Rc7 {[%clk 0:02:15.8]} 19. Rac1 {[%clk 0:02:22.1]}
19... Rfc8 {[%clk 0:02:16.1]} 20. Rxc7 {[%clk 0:02:19.5]} 20... Rxc7 {[%clk
0:02:17]} 21. Rf1 {[%clk 0:02:01.5]} 21... Nc8 {[%clk 0:02:15.5]} 22. Nh4 {[%clk
0:01:56.1]} 22... Ne7 {[%clk 0:02:15.4]} 23. f5 {[%clk 0:01:35.9]} 23... Nc6
{[%clk 0:01:50.3]} 24. fxe6 {[%clk 0:01:21.3]} 24... Bxe6 {[%clk 0:01:50.5]} 25.
Nf3 {[%clk 0:01:07.6]} 25... Nb4 {[%clk 0:01:45.1]} 26. Bb1 {[%clk 0:01:06.3]}
26... b5 {[%clk 0:01:34.1]} 27. Rc1 {[%clk 0:00:59.8]} 27... Rxc1 {[%clk
0:01:18.3]} 28. Kxc1 {[%clk 0:00:59.8]} 28... Bg4 {[%clk 0:01:16.5]} 29. Kd2
{[%clk 0:00:50.6]} 29... Bxf3 {[%clk 0:01:13.4]} 30. gxf3 {[%clk 0:00:50]} 30...
Nc6 {[%clk 0:01:12.4]} 31. Ke3 {[%clk 0:00:45.6]} 31... Kf8 {[%clk 0:01:12.3]}
32. f4 {[%clk 0:00:43.5]} 32... Ke7 {[%clk 0:01:12.2]} 33. Bxh7 {[%clk
0:00:35.6]} 33... f6 {[%clk 0:00:59.4]} 34. Bb1 {[%clk 0:00:31.2]} 34... fxe5
{[%clk 0:00:58.1]} 35. fxe5 {[%clk 0:00:24.6]} 35... Ke6 {[%clk 0:00:52]} 36. h4
{[%clk 0:00:21.5]} 1/2-1/2